[Event "Titled Tuesday Blitz February 15 Late 2022"]
[White "Al-Tarboush, Ward"]
[Black "Fedoseev, Vladimir"]
[WhiteFideId "7601450"]
[BlackFideId "24130737"]
[WhiteElo "2276"]
[BlackElo "2726"]
[Result "0-1"]
[Round "01"]
[TimeControl "180+1"]
[Date "2022.02.15"]
[WhiteClock "0:00:01"]
[BlackClock "0:00:09"]

1. e4 {[%clk 0:03:00]}  e5 {[%clk 0:02:59]} 2. Nf3 {[%clk 0:03:01]}  Nc6 {[%clk 0:02:59]} 3. Bb5 {[%clk 0:03:01]}  Nf6 {[%clk 0:03:00]} 4. O-O {[%clk 0:03:01]}  Nxe4 {[%clk 0:02:59]} 5. d4 {[%clk 0:03:01]}  Nd6 {[%clk 0:03:00]} 6. Bxc6 {[%clk 0:03:02]}  dxc6 {[%clk 0:03:01]} 7. dxe5 {[%clk 0:03:02]}  Nf5 {[%clk 0:03:01]} 8. Qxd8+ {[%clk 0:03:03]}  Kxd8 {[%clk 0:03:02]} 9. Nc3 {[%clk 0:03:04]}  Bd7 {[%clk 0:03:02]} 10. b3 {[%clk 0:03:03]}  Kc8 {[%clk 0:03:02]} 11. Bb2 {[%clk 0:03:03]}  Be7 {[%clk 0:03:00]} 12. Rad1 {[%clk 0:03:02]}  Re8 {[%clk 0:02:53]} 13. Rfe1 {[%clk 0:03:01]}  a5 {[%clk 0:02:49]} 14. h3 {[%clk 0:02:52]}  Ra6 {[%clk 0:02:29]} 15. g4 {[%clk 0:02:51]}  Nh4 {[%clk 0:02:27]} 16. Nxh4 {[%clk 0:02:51]}  Bxh4 {[%clk 0:02:28]} 17. Ne4 {[%clk 0:02:48]}  Be6 {[%clk 0:02:07]} 18. Nc5 {[%clk 0:02:42]}  Ra8 {[%clk 0:02:07]} 19. Nxe6 {[%clk 0:02:15]}  fxe6 {[%clk 0:02:07]} 20. Kg2 {[%clk 0:02:16]}  Rf8 {[%clk 0:02:05]} 21. Re2 {[%clk 0:02:16]}  c5 {[%clk 0:02:03]} 22. f3 {[%clk 0:02:14]}  b6 {[%clk 0:02:00]} 23. a4 {[%clk 0:02:13]}  Rf7 {[%clk 0:01:57]} 24. Red2 {[%clk 0:02:11]}  Bg5 {[%clk 0:01:51]} 25. Rd3 {[%clk 0:02:10]}  Be7 {[%clk 0:01:10]} 26. Rd7 {[%clk 0:02:01]}  Kb7 {[%clk 0:01:10]} 27. f4 {[%clk 0:01:46]}  Re8 {[%clk 0:01:08]} 28. f5 {[%clk 0:01:21]}  exf5 {[%clk 0:00:40]} 29. e6 {[%clk 0:01:20]}  Rff8 {[%clk 0:00:40]} 30. Be5 {[%clk 0:01:19]}  Bd8 {[%clk 0:00:40]} 31. Bxg7 {[%clk 0:01:11]}  Rg8 {[%clk 0:00:38]} 32. gxf5 {[%clk 0:01:10]}  Bf6 {[%clk 0:00:37]} 33. Kf3 {[%clk 0:01:04]}  Bxg7 {[%clk 0:00:29]} 34. Rf7 {[%clk 0:00:59]}  Be5 {[%clk 0:00:27]} 35. Ke4 {[%clk 0:00:32]}  Bh2 {[%clk 0:00:25]} 36. Rd2 {[%clk 0:00:27]}  Bg3 {[%clk 0:00:21]} 37. Rxh7 {[%clk 0:00:27]}  Kc6 {[%clk 0:00:19]} 38. Rg2 {[%clk 0:00:26]}  Rd8 {[%clk 0:00:18]} 39. f6 {[%clk 0:00:23]}  Rd4+ {[%clk 0:00:18]} 40. Ke3 {[%clk 0:00:16]}  Bf4+ {[%clk 0:00:15]} 41. Kf3 {[%clk 0:00:16]}  Rxg2 {[%clk 0:00:16]} 42. Kxg2 {[%clk 0:00:17]}  Bd6 {[%clk 0:00:16]} 43. e7 {[%clk 0:00:11]}  Re4 {[%clk 0:00:16]} 44. Rh8 {[%clk 0:00:11]}  Bxe7 {[%clk 0:00:15]} 45. fxe7 {[%clk 0:00:12]}  Rxe7 {[%clk 0:00:15]} 46. Rh6+ {[%clk 0:00:12]}  Kd5 {[%clk 0:00:15]} 47. Kf3 {[%clk 0:00:10]}  Kd4 {[%clk 0:00:15]} 48. Rh4+ {[%clk 0:00:10]}  Kc3 {[%clk 0:00:15]} 49. Rc4+ {[%clk 0:00:11]}  Kd2 {[%clk 0:00:16]} 50. h4 {[%clk 0:00:11]}  c6 {[%clk 0:00:11]} 51. h5 {[%clk 0:00:10]}  Re5 {[%clk 0:00:12]} 52. Kg4 {[%clk 0:00:10]}  b5 {[%clk 0:00:12]} 53. axb5 {[%clk 0:00:06]}  cxb5 {[%clk 0:00:13]} 54. Rf4 {[%clk 0:00:03]}  Kxc2 {[%clk 0:00:13]} 55. Rf3 {[%clk 0:00:03]}  Kb2 {[%clk 0:00:12]} 56. h6 {[%clk 0:00:03]}  a4 {[%clk 0:00:11]} 57. Rh3 {[%clk 0:00:02]}  axb3 {[%clk 0:00:10]} 58. Rh2+ {[%clk 0:00:01]}  Ka3 {[%clk 0:00:09]} 59. h7 {[%clk 0:00:01]}  Re8 {[%clk 0:00:09]} 0-1


[Site "https://www.chess.com"]

[Event "Titled Tuesday Blitz February 15 Late 2022"]
[White "Bellissimo, Joseph F."]
[Black "Grischuk, Alexander"]
[WhiteFideId "2609843"]
[BlackFideId "4126025"]
[WhiteElo "2061"]
[BlackElo "2762"]
[Result "0-1"]
[Round "01"]
[TimeControl "180+1"]
[Date "2022.02.15"]
[WhiteClock "0:00:16"]
[BlackClock "0:00:12"]

1. e4 {[%clk 0:03:00]}  d5 {[%clk 0:02:27]} 2. exd5 {[%clk 0:03:00]}  Qxd5 {[%clk 0:02:26]} 3. Nc3 {[%clk 0:02:59]}  Qa5 {[%clk 0:02:25]} 4. d4 {[%clk 0:02:59]}  Nf6 {[%clk 0:02:26]} 5. Nf3 {[%clk 0:02:58]}  c6 {[%clk 0:02:25]} 6. Ne5 {[%clk 0:02:58]}  Be6 {[%clk 0:02:23]} 7. Bd3 {[%clk 0:02:53]}  Nbd7 {[%clk 0:02:22]} 8. Bf4 {[%clk 0:02:53]}  g6 {[%clk 0:02:20]} 9. O-O {[%clk 0:02:48]}  Bg7 {[%clk 0:02:20]} 10. Qe2 {[%clk 0:02:40]}  O-O {[%clk 0:02:17]} 11. h3 {[%clk 0:02:39]}  Nb6 {[%clk 0:02:08]} 12. Bd2 {[%clk 0:02:10]}  Nbd5 {[%clk 0:02:01]} 13. Ne4 {[%clk 0:02:00]}  Qd8 {[%clk 0:01:53]} 14. Nc5 {[%clk 0:01:59]}  Bc8 {[%clk 0:01:53]} 15. c4 {[%clk 0:01:59]}  Nc7 {[%clk 0:01:52]} 16. Bc3 {[%clk 0:01:52]}  Qd6 {[%clk 0:01:45]} 17. Rad1 {[%clk 0:01:46]}  Ne6 {[%clk 0:01:29]} 18. Nxe6 {[%clk 0:01:16]}  Bxe6 {[%clk 0:01:30]} 19. b3 {[%clk 0:01:15]}  Rad8 {[%clk 0:01:26]} 20. f4 {[%clk 0:01:13]}  Bc8 {[%clk 0:01:19]} 21. Kh1 {[%clk 0:01:11]}  Qc7 {[%clk 0:01:04]} 22. f5 {[%clk 0:01:09]}  c5 {[%clk 0:01:01]} 23. d5 {[%clk 0:00:56]}  Nd7 {[%clk 0:00:57]} 24. Nxd7 {[%clk 0:00:48]}  Qxd7 {[%clk 0:00:51]} 25. Bxg7 {[%clk 0:00:31]}  Kxg7 {[%clk 0:00:52]} 26. Qe5+ {[%clk 0:00:27]}  Kg8 {[%clk 0:00:48]} 27. fxg6 {[%clk 0:00:26]}  hxg6 {[%clk 0:00:47]} 28. Rde1 {[%clk 0:00:25]}  Rde8 {[%clk 0:00:43]} 29. Re4 {[%clk 0:00:22]}  Qd6 {[%clk 0:00:40]} 30. Qc3 {[%clk 0:00:19]}  f5 {[%clk 0:00:36]} 31. Rh4 {[%clk 0:00:19]}  Qf6 {[%clk 0:00:36]} 32. Qe1 {[%clk 0:00:18]}  e5 {[%clk 0:00:29]} 33. Qg3 {[%clk 0:00:18]}  e4 {[%clk 0:00:26]} 34. Bxe4 {[%clk 0:00:17]}  Kg7 {[%clk 0:00:23]} 35. Bb1 {[%clk 0:00:16]}  Qe5 {[%clk 0:00:19]} 36. Rhf4 {[%clk 0:00:16]}  Rf6 {[%clk 0:00:17]} 37. Qg5 {[%clk 0:00:16]}  b6 {[%clk 0:00:14]} 38. Bxf5 {[%clk 0:00:15]}  Bxf5 {[%clk 0:00:13]} 39. Rxf5 {[%clk 0:00:15]}  Rxf5 {[%clk 0:00:12]} 40. Rxf5 {[%clk 0:00:14]}  Qxf5 {[%clk 0:00:13]} 41. Qg3 {[%clk 0:00:14]}  Qe5 {[%clk 0:00:13]} 42. Qg4 {[%clk 0:00:12]}  Rf8 {[%clk 0:00:11]} 43. Qd1 {[%clk 0:00:10]}  Rf4 {[%clk 0:00:10]} 44. Qc1 {[%clk 0:00:08]}  Re4 {[%clk 0:00:09]} 45. Qf1 {[%clk 0:00:03]}  Re1 {[%clk 0:00:10]} 46. Qxe1 {[%clk 0:00:04]}  Qxe1+ {[%clk 0:00:09]} 47. Kh2 {[%clk 0:00:05]}  Qe5+ {[%clk 0:00:10]} 48. g3 {[%clk 0:00:05]}  Kf6 {[%clk 0:00:11]} 49. h4 {[%clk 0:00:06]}  Qe2+ {[%clk 0:00:10]} 50. Kh3 {[%clk 0:00:07]}  Qxa2 {[%clk 0:00:11]} 51. Kg4 {[%clk 0:00:07]}  Qxb3 {[%clk 0:00:11]} 52. d6 {[%clk 0:00:08]}  Qxc4+ {[%clk 0:00:11]} 53. Kh3 {[%clk 0:00:09]}  Qe6+ {[%clk 0:00:11]} 54. Kh2 {[%clk 0:00:09]}  Qxd6 {[%clk 0:00:12]} 55. h5 {[%clk 0:00:10]}  gxh5 {[%clk 0:00:12]} 56. Kh3 {[%clk 0:00:10]}  Kg5 {[%clk 0:00:13]} 57. g4 {[%clk 0:00:09]}  hxg4+ {[%clk 0:00:12]} 58. Kg2 {[%clk 0:00:10]}  Qd3 {[%clk 0:00:12]} 59. Kf2 {[%clk 0:00:10]}  c4 {[%clk 0:00:12]} 60. Ke1 {[%clk 0:00:10]}  c3 {[%clk 0:00:13]} 61. Kf2 {[%clk 0:00:10]}  b5 {[%clk 0:00:13]} 62. Kg2 {[%clk 0:00:10]}  b4 {[%clk 0:00:13]} 63. Kf2 {[%clk 0:00:11]}  b3 {[%clk 0:00:13]} 64. Ke1 {[%clk 0:00:12]}  Qd2+ {[%clk 0:00:12]} 65. Kf1 {[%clk 0:00:12]}  c2 {[%clk 0:00:13]} 66. Kg1 {[%clk 0:00:12]}  b2 {[%clk 0:00:13]} 67. Kh1 {[%clk 0:00:12]}  a5 {[%clk 0:00:14]} 68. Kg1 {[%clk 0:00:12]}  a4 {[%clk 0:00:15]} 69. Kf1 {[%clk 0:00:13]}  a3 {[%clk 0:00:15]} 70. Kg1 {[%clk 0:00:14]}  a2 {[%clk 0:00:16]} 71. Kf1 {[%clk 0:00:15]}  a1=N {[%clk 0:00:14]} 72. Kg1 {[%clk 0:00:15]}  b1=B {[%clk 0:00:13]} 73. Kh1 {[%clk 0:00:16]}  c1=R# {[%clk 0:00:12]} 0-1


[Site "https://www.chess.com"]

[Event "Titled Tuesday Blitz February 15 Late 2022"]
[White "Bortnyk, Olexandr"]
[Black "Zhurbinsky, David"]
[WhiteFideId "14120828"]
[BlackFideId "2072904"]
[WhiteElo "2723"]
[BlackElo "2536"]
[Result "1-0"]
[Round "01"]
[TimeControl "180+1"]
[Date "2022.02.15"]
[WhiteClock "0:00:46"]
[BlackClock "0:00:27"]

1. e4 {[%clk 0:02:53]}  e5 {[%clk 0:03:00]} 2. Bc4 {[%clk 0:02:37]}  Nf6 {[%clk 0:02:58]} 3. d3 {[%clk 0:02:37]}  Bc5 {[%clk 0:02:58]} 4. Nc3 {[%clk 0:02:36]}  Nc6 {[%clk 0:02:57]} 5. Bg5 {[%clk 0:02:34]}  h6 {[%clk 0:02:55]} 6. Bh4 {[%clk 0:02:33]}  d6 {[%clk 0:02:50]} 7. Nf3 {[%clk 0:02:15]}  Bg4 {[%clk 0:02:45]} 8. h3 {[%clk 0:02:11]}  Bxf3 {[%clk 0:02:10]} 9. Qxf3 {[%clk 0:02:12]}  Nd4 {[%clk 0:02:10]} 10. Qd1 {[%clk 0:02:08]}  g5 {[%clk 0:02:06]} 11. Bg3 {[%clk 0:02:08]}  Qd7 {[%clk 0:02:04]} 12. Ne2 {[%clk 0:02:02]}  O-O-O {[%clk 0:02:01]} 13. c3 {[%clk 0:02:02]}  Nxe2 {[%clk 0:02:01]} 14. Qxe2 {[%clk 0:02:02]}  Rhe8 {[%clk 0:01:59]} 15. O-O-O {[%clk 0:02:00]}  d5 {[%clk 0:01:56]} 16. Bb3 {[%clk 0:01:59]}  d4 {[%clk 0:01:54]} 17. cxd4 {[%clk 0:01:57]}  Bxd4 {[%clk 0:01:52]} 18. Kb1 {[%clk 0:01:58]}  Kb8 {[%clk 0:01:50]} 19. Rc1 {[%clk 0:01:57]}  Qe7 {[%clk 0:01:40]} 20. Qf3 {[%clk 0:01:56]}  Rd6 {[%clk 0:01:37]} 21. Rc2 {[%clk 0:01:47]}  Rb6 {[%clk 0:01:31]} 22. Rhc1 {[%clk 0:01:45]}  c6 {[%clk 0:01:25]} 23. Rc4 {[%clk 0:01:39]}  Ka8 {[%clk 0:01:22]} 24. h4 {[%clk 0:01:35]}  g4 {[%clk 0:01:16]} 25. Qf5 {[%clk 0:01:35]}  h5 {[%clk 0:01:12]} 26. R1c2 {[%clk 0:01:06]}  Rd8 {[%clk 0:01:04]} 27. Qg5 {[%clk 0:01:04]}  a6 {[%clk 0:00:57]} 28. Rxd4 {[%clk 0:00:58]}  Rxd4 {[%clk 0:00:32]} 29. Bxe5 {[%clk 0:00:55]}  Rxd3 {[%clk 0:00:33]} 30. Qxf6 {[%clk 0:00:48]}  Qd7 {[%clk 0:00:27]} 31. Qh8+ {[%clk 0:00:46]}  Ka7 {[%clk 0:00:27]} 32. Qb8# {[%clk 0:00:46]} 1-0


[Site "https://www.chess.com"]

[Event "Titled Tuesday Blitz February 15 Late 2022"]
[White "Brunner, Nicolas"]
[Black "Tari, Aryan"]
[WhiteFideId "620246"]
[BlackFideId "1510045"]
[WhiteElo "2372"]
[BlackElo "2567"]
[Result "0-1"]
[Round "01"]
[TimeControl "180+1"]
[Date "2022.02.15"]
[WhiteClock "0:00:01"]
[BlackClock "0:00:10"]

1. d4 {[%clk 0:03:00]}  d5 {[%clk 0:02:58]} 2. c4 {[%clk 0:02:59]}  e6 {[%clk 0:02:58]} 3. Nf3 {[%clk 0:02:59]}  Nf6 {[%clk 0:02:57]} 4. g3 {[%clk 0:02:59]}  Bd6 {[%clk 0:02:57]} 5. Bg2 {[%clk 0:02:56]}  O-O {[%clk 0:02:57]} 6. O-O {[%clk 0:02:52]}  h6 {[%clk 0:02:57]} 7. Qc2 {[%clk 0:02:50]}  b6 {[%clk 0:02:47]} 8. b3 {[%clk 0:02:48]}  Bb7 {[%clk 0:02:46]} 9. Bb2 {[%clk 0:02:48]}  Nbd7 {[%clk 0:02:44]} 10. Nc3 {[%clk 0:02:47]}  a6 {[%clk 0:02:33]} 11. Rad1 {[%clk 0:02:46]}  Re8 {[%clk 0:02:32]} 12. Rfe1 {[%clk 0:02:45]}  Qe7 {[%clk 0:02:12]} 13. e3 {[%clk 0:02:33]}  Bb4 {[%clk 0:02:05]} 14. Nd2 {[%clk 0:02:26]}  Rac8 {[%clk 0:01:59]} 15. e4 {[%clk 0:02:25]}  dxe4 {[%clk 0:01:54]} 16. Ndxe4 {[%clk 0:02:25]}  Nxe4 {[%clk 0:01:54]} 17. Bxe4 {[%clk 0:02:24]}  Bxe4 {[%clk 0:01:54]} 18. Qxe4 {[%clk 0:02:22]}  Nf6 {[%clk 0:01:46]} 19. Qc6 {[%clk 0:02:21]}  Qd6 {[%clk 0:01:43]} 20. Qf3 {[%clk 0:02:15]}  Rcd8 {[%clk 0:01:32]} 21. Kg2 {[%clk 0:02:06]}  Ba3 {[%clk 0:01:23]} 22. Ba1 {[%clk 0:02:06]}  Qd7 {[%clk 0:01:15]} 23. d5 {[%clk 0:01:57]}  e5 {[%clk 0:00:46]} 24. Ne4 {[%clk 0:01:37]}  Nxe4 {[%clk 0:00:46]} 25. Rxe4 {[%clk 0:01:37]}  Bd6 {[%clk 0:00:46]} 26. g4 {[%clk 0:01:35]}  Rf8 {[%clk 0:00:40]} 27. Qf5 {[%clk 0:01:32]}  Qxf5 {[%clk 0:00:20]} 28. gxf5 {[%clk 0:01:32]}  f6 {[%clk 0:00:21]} 29. Kf3 {[%clk 0:01:30]}  Kf7 {[%clk 0:00:20]} 30. Rg4 {[%clk 0:01:30]}  Rg8 {[%clk 0:00:19]} 31. Rdg1 {[%clk 0:01:29]}  b5 {[%clk 0:00:19]} 32. Rc1 {[%clk 0:01:21]}  bxc4 {[%clk 0:00:18]} 33. Rcxc4 {[%clk 0:01:09]}  Rb8 {[%clk 0:00:18]} 34. Ra4 {[%clk 0:01:05]}  Rb6 {[%clk 0:00:17]} 35. Bc3 {[%clk 0:01:00]}  Rgb8 {[%clk 0:00:17]} 36. Rgc4 {[%clk 0:00:53]}  Rb5 {[%clk 0:00:16]} 37. Ke4 {[%clk 0:00:53]}  g6 {[%clk 0:00:12]} 38. Rxa6 {[%clk 0:00:43]}  gxf5+ {[%clk 0:00:12]} 39. Kxf5 {[%clk 0:00:43]}  Rxd5 {[%clk 0:00:13]} 40. Ra7 {[%clk 0:00:35]}  Rg8 {[%clk 0:00:09]} 41. Rcxc7+ {[%clk 0:00:28]}  Bxc7 {[%clk 0:00:06]} 42. Rxc7+ {[%clk 0:00:28]}  Ke8 {[%clk 0:00:07]} 43. Rc8+ {[%clk 0:00:28]}  Rd8 {[%clk 0:00:06]} 44. Rxd8+ {[%clk 0:00:25]}  Kxd8 {[%clk 0:00:07]} 45. Kxf6 {[%clk 0:00:25]}  Rg2 {[%clk 0:00:07]} 46. Bxe5 {[%clk 0:00:24]}  Rxf2+ {[%clk 0:00:06]} 47. Kg6 {[%clk 0:00:24]}  Rxa2 {[%clk 0:00:06]} 48. Kxh6 {[%clk 0:00:24]}  Ra5 {[%clk 0:00:03]} 49. Bf6+ {[%clk 0:00:20]}  Ke8 {[%clk 0:00:04]} 50. Kg6 {[%clk 0:00:20]}  Rb5 {[%clk 0:00:04]} 51. h4 {[%clk 0:00:20]}  Rxb3 {[%clk 0:00:04]} 52. h5 {[%clk 0:00:20]}  Rg3+ {[%clk 0:00:04]} 53. Kf5 {[%clk 0:00:19]}  Kf7 {[%clk 0:00:04]} 54. Bg5 {[%clk 0:00:19]}  Rh3 {[%clk 0:00:04]} 55. Kg4 {[%clk 0:00:19]}  Rh1 {[%clk 0:00:05]} 56. Bf4 {[%clk 0:00:19]}  Rg1+ {[%clk 0:00:05]} 57. Kh3 {[%clk 0:00:18]}  Kf6 {[%clk 0:00:05]} 58. Kh2 {[%clk 0:00:18]}  Rg4 {[%clk 0:00:05]} 59. Bb8 {[%clk 0:00:17]}  Rh4+ {[%clk 0:00:05]} 60. Kg1 {[%clk 0:00:17]}  Rxh5 {[%clk 0:00:06]} 61. Ba7 {[%clk 0:00:16]}  Rb5 {[%clk 0:00:07]} 62. Kg2 {[%clk 0:00:15]}  Kf5 {[%clk 0:00:07]} 63. Kg1 {[%clk 0:00:16]}  Rb2 {[%clk 0:00:07]} 64. Kh1 {[%clk 0:00:16]}  Ra2 {[%clk 0:00:08]} 65. Bb6 {[%clk 0:00:16]}  Ke4 {[%clk 0:00:08]} 66. Bc5 {[%clk 0:00:16]}  Kf3 {[%clk 0:00:08]} 67. Bb6 {[%clk 0:00:16]}  Kg3 {[%clk 0:00:09]} 68. Bc7+ {[%clk 0:00:15]}  Kf2 {[%clk 0:00:09]} 69. Bb6+ {[%clk 0:00:15]}  Kf3 {[%clk 0:00:09]} 70. Bc5 {[%clk 0:00:15]}  Rc2 {[%clk 0:00:10]} 71. Bb6 {[%clk 0:00:15]}  Rc6 {[%clk 0:00:10]} 72. Ba7 {[%clk 0:00:15]}  Rc8 {[%clk 0:00:08]} 73. Bb6 {[%clk 0:00:13]}  Kg3 {[%clk 0:00:08]} 74. Ba7 {[%clk 0:00:12]}  Rh8+ {[%clk 0:00:05]} 75. Kg1 {[%clk 0:00:12]}  Ra8 {[%clk 0:00:06]} 76. Bf2+ {[%clk 0:00:11]}  Kf3 {[%clk 0:00:06]} 77. Bb6 {[%clk 0:00:11]}  Rg8+ {[%clk 0:00:05]} 78. Kh1 {[%clk 0:00:11]}  Rg6 {[%clk 0:00:06]} 79. Ba7 {[%clk 0:00:10]}  Rg2 {[%clk 0:00:07]} 80. Bb6 {[%clk 0:00:10]}  Ra2 {[%clk 0:00:08]} 81. Bc5 {[%clk 0:00:09]}  Rd2 {[%clk 0:00:07]} 82. Bb6 {[%clk 0:00:09]}  Rd7 {[%clk 0:00:08]} 83. Bc5 {[%clk 0:00:09]}  Kg3 {[%clk 0:00:08]} 84. Bb6 {[%clk 0:00:06]}  Rb7 {[%clk 0:00:06]} 85. Bc5 {[%clk 0:00:06]}  Rb1+ {[%clk 0:00:06]} 86. Bg1 {[%clk 0:00:06]}  Kf3 {[%clk 0:00:07]} 87. Kh2 {[%clk 0:00:05]}  Rb2+ {[%clk 0:00:05]} 88. Kh1 {[%clk 0:00:04]}  Ra2 {[%clk 0:00:05]} 89. Bb6 {[%clk 0:00:04]}  Ra6 {[%clk 0:00:06]} 90. Bc5 {[%clk 0:00:04]}  Rc6 {[%clk 0:00:06]} 91. Ba7 {[%clk 0:00:03]}  Kg3 {[%clk 0:00:07]} 92. Bb8+ {[%clk 0:00:02]}  Kf2 {[%clk 0:00:08]} 93. Ba7+ {[%clk 0:00:02]}  Kf3 {[%clk 0:00:09]} 94. Kg1 {[%clk 0:00:01]}  Rh6 {[%clk 0:00:09]} 95. Kf1 {[%clk 0:00:01]}  Rg6 {[%clk 0:00:10]} 0-1


[Site "https://www.chess.com"]

[Event "Titled Tuesday Blitz February 15 Late 2022"]
[White "Bugayev, Vladimir"]
[Black "Kozak, Adam"]
[WhiteFideId "30901480"]
[BlackFideId "753246"]
[WhiteElo "2419"]
[BlackElo "2459"]
[Result "0-1"]
[Round "01"]
[TimeControl "180+1"]
[Date "2022.02.16"]
[WhiteClock "0:00:23"]
[BlackClock "0:00:03"]

1. e4 {[%clk 0:02:58]}  c5 {[%clk 0:02:47]} 2. Nc3 {[%clk 0:02:57]}  d6 {[%clk 0:02:41]} 3. f4 {[%clk 0:02:56]}  Nf6 {[%clk 0:02:33]} 4. Nf3 {[%clk 0:02:55]}  a6 {[%clk 0:02:33]} 5. a4 {[%clk 0:02:45]}  Nc6 {[%clk 0:01:49]} 6. Bc4 {[%clk 0:02:42]}  g6 {[%clk 0:01:48]} 7. O-O {[%clk 0:02:40]}  Bg7 {[%clk 0:01:46]} 8. d3 {[%clk 0:02:41]}  O-O {[%clk 0:01:45]} 9. Qe1 {[%clk 0:02:38]}  Bd7 {[%clk 0:01:42]} 10. Qh4 {[%clk 0:02:33]}  Na5 {[%clk 0:01:29]} 11. Ba2 {[%clk 0:02:29]}  c4 {[%clk 0:01:24]} 12. f5 {[%clk 0:02:24]}  b5 {[%clk 0:01:18]} 13. Bh6 {[%clk 0:02:23]}  Qb6+ {[%clk 0:01:09]} 14. Kh1 {[%clk 0:02:21]}  Bc6 {[%clk 0:01:02]} 15. Ng5 {[%clk 0:02:13]}  Nh5 {[%clk 0:00:31]} 16. Bxg7 {[%clk 0:01:35]}  Kxg7 {[%clk 0:00:31]} 17. fxg6 {[%clk 0:01:33]}  hxg6 {[%clk 0:00:20]} 18. g4 {[%clk 0:01:27]}  Bd7 {[%clk 0:00:08]} 19. gxh5 {[%clk 0:01:22]}  f6 {[%clk 0:00:08]} 20. h6+ {[%clk 0:01:20]}  Kh8 {[%clk 0:00:08]} 21. Ne6 {[%clk 0:01:12]}  Bxe6 {[%clk 0:00:06]} 22. Ne2 {[%clk 0:01:04]}  g5 {[%clk 0:00:05]} 23. Qh5 {[%clk 0:00:55]}  Bf7 {[%clk 0:00:05]} 24. Qh3 {[%clk 0:00:54]}  Nc6 {[%clk 0:00:04]} 25. Ng3 {[%clk 0:00:53]}  Nd4 {[%clk 0:00:05]} 26. Nf5 {[%clk 0:00:46]}  Nxf5 {[%clk 0:00:04]} 27. Qxf5 {[%clk 0:00:45]}  Rac8 {[%clk 0:00:03]} 28. h4 {[%clk 0:00:40]}  Rc5 {[%clk 0:00:02]} 29. Qd7 {[%clk 0:00:35]}  Re8 {[%clk 0:00:02]} 30. Rxf6 {[%clk 0:00:30]}  exf6 {[%clk 0:00:01]} 31. Qxf7 {[%clk 0:00:30]}  Rg8 {[%clk 0:00:02]} 32. Qxf6+ {[%clk 0:00:29]}  Kh7 {[%clk 0:00:02]} 33. hxg5 {[%clk 0:00:28]}  Qc7 {[%clk 0:00:02]} 34. Qf5+ {[%clk 0:00:25]}  Rxf5 {[%clk 0:00:02]} 35. exf5 {[%clk 0:00:24]}  Rxg5 {[%clk 0:00:02]} 36. Kh2 {[%clk 0:00:23]}  Qc6 {[%clk 0:00:03]} 0-1


[Site "https://www.chess.com"]

[Event "Titled Tuesday Blitz February 15 Late 2022"]
[White "Carreto Nieto, Giovanni"]
[Black "Sadhwani, Raunak"]
[WhiteFideId "5105030"]
[BlackFideId "35093487"]
[WhiteElo "2221"]
[BlackElo "2616"]
[Result "0-1"]
[Round "01"]
[TimeControl "180+1"]
[Date "2022.02.15"]
[WhiteClock "0:02:14"]
[BlackClock "0:01:51"]

1. e4 {[%clk 0:02:59]}  e5 {[%clk 0:03:00]} 2. Nf3 {[%clk 0:02:59]}  Nc6 {[%clk 0:03:00]} 3. d4 {[%clk 0:03:00]}  exd4 {[%clk 0:03:01]} 4. Nxd4 {[%clk 0:03:01]}  Nf6 {[%clk 0:03:02]} 5. Nxc6 {[%clk 0:03:01]}  bxc6 {[%clk 0:03:03]} 6. e5 {[%clk 0:03:01]}  Qe7 {[%clk 0:03:03]} 7. Qe2 {[%clk 0:03:01]}  Nd5 {[%clk 0:03:04]} 8. c4 {[%clk 0:03:01]}  Ba6 {[%clk 0:03:03]} 9. b3 {[%clk 0:03:01]}  g6 {[%clk 0:03:03]} 10. f4 {[%clk 0:03:02]}  d6 {[%clk 0:03:01]} 11. exd6 {[%clk 0:02:55]}  Qxe2+ {[%clk 0:03:00]} 12. Bxe2 {[%clk 0:02:55]}  Bg7 {[%clk 0:02:58]} 13. cxd5 {[%clk 0:02:54]}  Bxe2 {[%clk 0:02:59]} 14. Kxe2 {[%clk 0:02:54]}  Bxa1 {[%clk 0:03:00]} 15. dxc7 {[%clk 0:02:52]}  cxd5 {[%clk 0:02:57]} 16. Ba3 {[%clk 0:02:50]}  Kd7 {[%clk 0:02:51]} 17. Rc1 {[%clk 0:02:50]}  Rac8 {[%clk 0:02:47]} 18. Rd1 {[%clk 0:02:45]}  Rxc7 {[%clk 0:02:42]} 19. Rxd5+ {[%clk 0:02:44]}  Kc8 {[%clk 0:02:43]} 20. Nd2 {[%clk 0:02:44]}  Re8+ {[%clk 0:02:41]} 21. Kf3 {[%clk 0:02:39]}  Rd8 {[%clk 0:02:38]} 22. Rxd8+ {[%clk 0:02:38]}  Kxd8 {[%clk 0:02:39]} 23. Nc4 {[%clk 0:02:39]}  Rd7 {[%clk 0:02:34]} 24. Bd6 {[%clk 0:02:37]}  Bf6 {[%clk 0:02:32]} 25. Ke2 {[%clk 0:02:33]}  Be7 {[%clk 0:02:30]} 26. Be5 {[%clk 0:02:32]}  f6 {[%clk 0:02:28]} 27. Bc3 {[%clk 0:02:32]}  Ke8 {[%clk 0:02:29]} 28. g3 {[%clk 0:02:29]}  Kf7 {[%clk 0:02:29]} 29. Bd2 {[%clk 0:02:28]}  Bc5 {[%clk 0:02:29]} 30. Bc3 {[%clk 0:02:27]}  Ke6 {[%clk 0:02:27]} 31. h3 {[%clk 0:02:26]}  Bd4 {[%clk 0:02:27]} 32. Bd2 {[%clk 0:02:26]}  h5 {[%clk 0:02:25]} 33. Kf3 {[%clk 0:02:26]}  Bc5 {[%clk 0:02:21]} 34. g4 {[%clk 0:02:25]}  Rd3+ {[%clk 0:02:21]} 35. Kg2 {[%clk 0:02:21]}  hxg4 {[%clk 0:02:07]} 36. hxg4 {[%clk 0:02:22]}  Bd4 {[%clk 0:02:06]} 37. Kf1 {[%clk 0:02:18]}  Rg3 {[%clk 0:02:05]} 38. g5 {[%clk 0:02:18]}  f5 {[%clk 0:02:00]} 39. Ke2 {[%clk 0:02:17]}  Kd5 {[%clk 0:02:01]} 40. Kd1 {[%clk 0:02:14]}  Ke4 {[%clk 0:01:51]} 41. Nd6+ {[%clk 0:02:14]}  Kd3 {[%clk 0:01:51]} 0-1


[Site "https://www.chess.com"]